fUST/lending_fUST_20241223
["ID","MTS","AMOUNT","RATE_DAILY","PERIOD"]
[346374113,1734920827673,-500.0,0.00012899,2]
[346374114,1734920827696,-500.0,0.00012899,2]
[346374115,1734920827720,-500.0,0.00012899,2]
[346374116,1734920827743,-500.0,0.00012899,2]
[346374117,1734920827765,-500.0,0.00012899,2]
[346374118,1734920827789,-500.0,0.00012899,2]
[346374119,1734920827812,-500.0,0.00012899,2]
[346374120,1734920827835,-500.0,0.00012899,2]
[346374121,1734920827858,-500.0,0.00012899,2]
[346374122,1734920827880,-500.0,0.00012899,2]
[346374123,1734920827904,-500.0,0.00012899,2]
[346374124,1734920827929,-500.0,0.00012899,2]
[346374125,1734920827953,-500.0,0.00012899,2]
[346374126,1734920827976,-500.0,0.00012899,2]
[346374127,1734920827999,-500.0,0.00012899,2]
[346374128,1734920828023,-500.0,0.00012899,2]
[346374129,1734920828046,-500.0,0.00012899,2]
[346374130,1734920828068,-500.0,0.00012899,2]
[346374131,1734920828091,-500.0,0.00012899,2]
[346374132,1734920828113,-500.0,0.00012899,2]
[346374133,1734920828136,-500.0,0.00012899,2]
[346374134,1734920828157,-500.0,0.00012899,2]
[346374135,1734920828182,-500.0,0.00012899,2]
[346374136,1734920828205,-500.0,0.00012899,2]
[346374137,1734920828228,-500.0,0.00012899,2]
[346374138,1734920828250,-500.0,0.00012899,2]
[346374139,1734920828273,-500.0,0.00012899,2]
[346374140,1734920828295,-500.0,0.00012899,2]
[346374141,1734920828317,-500.0,0.00012899,2]
[346374142,1734920828339,-500.0,0.00012899,2]
[346374143,1734920828363,-500.0,0.00012899,2]
[346374144,1734920828385,-500.0,0.00012899,2]
[346374145,1734920828407,-500.0,0.00012899,2]
[346374146,1734920828434,-500.0,0.00012899,2]
[346374147,1734920828456,-500.0,0.00012899,2]
[346374148,1734920828479,-500.0,0.00012899,2]
[346374149,1734920828502,-500.0,0.00012899,2]
[346374150,1734920828527,-500.0,0.00012899,2]
[346374151,1734920828550,-500.0,0.00012899,2]
[346374152,1734920828572,-500.0,0.00012899,2]
[346374153,1734920828598,-364.00751106,0.00012899,2]
[346374154,1734920828621,-500.0,0.00012899,2]
[346374155,1734920828643,-500.0,0.00012899,2]
[346374156,1734920828667,-500.0,0.00012899,2]
[346374157,1734920828689,-500.0,0.00012899,2]
[346374158,1734920828713,-500.0,0.00012899,2]
[346374159,1734920828736,-255.62659589,0.00012899,2]
[346374160,1734920828763,-500.0,0.00012899,2]
[346374161,1734920828787,-500.0,0.00012899,2]
[346374162,1734920828811,-500.0,0.00012899,2]
[346374163,1734920828835,-500.0,0.00012899,2]
[346374164,1734920828858,-500.0,0.00012899,2]
[346374165,1734920828883,-500.0,0.00012899,2]
[346374166,1734920828909,-500.0,0.00012899,2]
[346374167,1734920828942,-500.0,0.00012899,2]
[346374168,1734920828964,-587.0,0.00013389,2]
[346374169,1734920828987,-587.0,0.00013418,2]
[346374170,1734920829009,-703.0362521,0.00013475,2]
[346374171,1734920829032,-500.0,0.00013698,2]
[346374172,1734920829053,-500.0,0.00013698,2]
[346374173,1734920829076,-500.0,0.00013698,2]
[346374174,1734920829099,-500.0,0.00013698,2]
[346374175,1734920829121,-277.6901822,0.00013698,2]
[346374176,1734920829143,-500.91127189,0.00013698,2]
[346374177,1734920829166,-500.0,0.00013698,2]
[346374178,1734920829188,-500.0,0.00013698,2]
[346374179,1734920829210,-556.34306284,0.00013698,2]
[346374180,1734920829232,-500.0,0.00013698,2]
[346374181,1734920829254,-500.0,0.00013698,2]
[346374182,1734920829275,-500.0,0.00013698,2]
[346374183,1734920829296,-500.0,0.00013698,2]
[346374184,1734920829317,-500.0,0.00013698,2]
[346374185,1734920829339,-500.0,0.00013698,2]
[346374186,1734920829364,-865.46,0.00013698,2]
[346374187,1734920829386,-384.48044029,0.00013698,2]
[346374188,1734920829407,-500.0,0.00013698,2]
[346374189,1734920829434,-500.0,0.00013698,2]
[346374190,1734920829457,-500.0,0.00013698,2]
[346374191,1734920829479,-111.36251712,0.00013698,2]
[346374192,1734920844112,-9271.41556537,0.00012186,2]
[346374193,1734920844135,-1664.3166535,0.0001277,2]
[346374194,1734920844157,-500.0,0.00012899,2]
[346374195,1734920844184,-500.0,0.00012899,2]
[346374196,1734920844207,-550.0,0.00012899,2]
[346374197,1734920844229,-500.0,0.00012899,2]
[346374198,1734920844252,-500.0,0.00012899,2]
[346374199,1734920844274,-500.0,0.00012899,2]
[346374200,1734920844298,-500.0,0.00012899,2]
[346374201,1734920844321,-500.0,0.00012899,2]
[346374202,1734920844343,-500.0,0.00012899,2]
[346374203,1734920844367,-500.0,0.00012899,2]
[346374204,1734920844390,-500.0,0.00012899,2]
[346374205,1734920844412,-500.0,0.00012899,2]
[346374206,1734920844437,-500.0,0.00012899,2]
[346374207,1734920844460,-500.0,0.00012899,2]
[346374208,1734920844483,-236.4007511,0.00012899,2]
[346374209,1734920844510,-388.63748288,0.00013698,2]
[346374210,1734920844533,-500.0,0.00013698,2]
[346374211,1734920844558,-500.0,0.00013698,2]
[346374212,1734920844578,-500.0,0.00013698,2]
[346374213,1734920844601,-500.0,0.00013698,2]
[346374214,1734920844622,-500.0,0.00013698,2]
[346374215,1734920844643,-500.0,0.00013698,2]
[346374216,1734920844664,-500.0,0.00013698,2]
[346374217,1734920844691,-500.0,0.00013698,2]
[346374218,1734920844714,-500.0,0.00013698,2]
[346374219,1734920844736,-500.0,0.00013698,2]
[346374220,1734920844757,-500.0,0.00013698,2]
[346374221,1734920844779,-500.0,0.00013698,2]
[346374222,1734920844800,-500.0,0.00013698,2]
[346374223,1734920844820,-637.67,0.00013698,2]
[346374224,1734920844842,-290.779242,0.00013698,2]
[346374225,1734920844862,-151.0,0.00013698,2]
[346374226,1734920844884,-290.779242,0.00013698,2]
[346374227,1734920844905,-377.85298173,0.00013698,2]
[346374228,1734920844929,-195.907565,0.00013698,2]
[346374229,1734920844953,-500.0,0.00013698,2]
[346374230,1734920844974,-504.15093331,0.00013698,2]
[346374231,1734920844997,-301.2062104,0.00013698,2]
[346374232,1734920845018,-500.0,0.00013698,2]
[346374233,1734920845038,-500.0,0.00013698,2]
[346374234,1734920845060,-505.90167129,0.00013698,2]
[346374235,1734920845081,-500.0,0.00013698,2]
[346374236,1734920845103,-500.0,0.00013698,2]
[346374237,1734920845123,-684.2,0.00013698,7]
[346374238,1734920845145,-718.1,0.00013698,2]
[346374239,1734920845166,-500.0,0.00013698,2]
[346374240,1734920845188,-500.0,0.00013698,2]
[346374241,1734920845208,-500.12636791,0.00013698,2]
[346374242,1734920845228,-500.0,0.00013698,2]
[346374243,1734920845249,-812.05,0.00013698,2]
[346374244,1734920845269,-500.0,0.00013698,2]
[346374245,1734920845291,-500.0,0.00013698,2]
[346374246,1734920845312,-503.33851768,0.00013698,2]
[346374247,1734920845332,-500.0,0.00013698,2]
[346374248,1734920845353,-500.0,0.00013698,2]
[346374249,1734920845376,-500.0,0.00013698,2]
[346374250,1734920845397,-500.0,0.00013698,2]
[346374251,1734920845419,-500.0,0.00013698,2]
[346374252,1734920845442,-500.0,0.00013698,2]
[346374253,1734920845465,-500.0,0.00013698,2]
[346374254,1734920845487,-500.0,0.00013698,2]
[346374255,1734920845510,-500.0,0.00013698,2]
[346374256,1734920845531,-500.0,0.00013698,2]
[346374257,1734920845552,-500.0,0.00013698,2]
[346374258,1734920845573,-500.0,0.00013698,2]
[346374259,1734920845597,-151.0,0.00013698,2]
[346374260,1734920845618,-500.0,0.00013698,2]
[346374261,1734920845640,-500.0,0.00013698,2]
[346374262,1734920845661,-500.0,0.00013698,2]
[346374263,1734920845684,-151.0,0.00013698,2]
[346374264,1734920845708,-500.0,0.00013698,2]
[346374265,1734920845730,-500.0,0.00013698,2]
[346374266,1734920845754,-500.0,0.00013698,2]
[346374267,1734920845776,-847.73,0.00013698,2]
[346374268,1734920845799,-500.0,0.00013698,2]
[346374269,1734920845821,-271.97330096,0.00013698,2]
[346374270,1734920845844,-500.0,0.00013698,2]
[346374271,1734920845867,-505.92744,0.00013698,2]
[346374272,1734920845888,-248.71555618,0.00013698,2]
[346374273,1734920845910,-151.0,0.00013698,2]
[346374274,1734920845934,-212.27,0.00013698,2]
[346374275,1734920845956,-500.0,0.00013698,2]
[346374276,1734920845978,-500.0,0.00013698,2]
[346374277,1734920846002,-500.0,0.00013698,2]
[346374278,1734920846022,-870.52,0.00013698,2]
[346374279,1734920846043,-1200.5,0.00013698,2]
[346374280,1734920846065,-500.0,0.00013698,2]
[346374281,1734920846085,-500.0,0.00013698,2]
[346374282,1734920846107,-500.0,0.00013698,2]
[346374283,1734920846130,-500.0,0.00013698,2]
[346374284,1734920846150,-500.0,0.00013698,2]
[346374285,1734920846170,-911.17,0.00013698,2]
[346374286,1734920846194,-500.0,0.00013698,2]
[346374287,1734920846217,-500.0,0.00013698,2]
[346374288,1734920846239,-500.0,0.00013698,2]
[346374289,1734920846266,-1794.64,0.00013698,2]
[346374290,1734920846289,-777.170347,0.00013698,2]
[346374291,1734920846313,-500.0,0.00013698,2]
[346374292,1734920846335,-500.0,0.00013698,2]
[346374293,1734920846357,-500.0,0.00013698,2]
[346374294,1734920846381,-500.0,0.00013698,2]
[346374295,1734920846403,-500.0,0.00013698,2]
[346374296,1734920846424,-500.0,0.00013698,2]
[346374297,1734920846448,-500.0,0.00013698,2]
[346374298,1734920846470,-500.0,0.00013698,2]
[346374299,1734920846492,-500.0,0.00013698,2]
[346374300,1734920846518,-404.78068269,0.00013698,2]
[346374301,1734920846540,-500.0,0.00013698,2]
[346374302,1734920846563,-777.170347,0.00013698,2]
[346374303,1734920846586,-968.29,0.00013698,2]
[346374304,1734920846608,-500.0,0.00013698,2]
[346374305,1734920846631,-505.86911267,0.00013698,2]
[346374306,1734920846652,-500.0,0.00013698,2]
[346374307,1734920846676,-1007.44,0.00013698,2]
[346374308,1734920846703,-500.0,0.00013698,2]
[346374309,1734920846728,-1184.1,0.00013698,2]
[346374310,1734920846752,-501.8790043,0.00013698,2]
[346374311,1734920846776,-594.17,0.00013698,2]
[346374312,1734920846802,-500.0,0.00013698,2]
[346374313,1734920846827,-13158.84,0.00013698,2]
[346374314,1734920846850,-502.41988977,0.00013698,2]
[346374315,1734920846874,-500.0,0.00013698,2]
[346374316,1734920846897,-717.81,0.00013698,2]
[346374317,1734920846922,-500.0,0.00013698,2]
[346374318,1734920846953,-500.0,0.00013698,2]
[346374319,1734920846976,-500.0,0.00013698,2]
[346374320,1734920846999,-151.0,0.00013698,2]
[346374321,1734920847021,-500.0,0.00013698,2]
[346374322,1734920847043,-500.0,0.00013698,2]
[346374323,1734920847067,-500.0,0.00013698,2]
[346374324,1734920847091,-559.6,0.00013698,2]
[346374325,1734920847114,-500.0,0.00013698,2]
[346374326,1734920847137,-500.0,0.00013698,2]
[346374327,1734920847159,-500.0,0.00013698,2]
[346374328,1734920847185,-500.0,0.00013698,2]
[346374329,1734920847207,-500.0,0.00013698,2]
[346374330,1734920847231,-500.0,0.00013698,2]
[346374331,1734920847253,-500.0,0.00013698,2]
[346374332,1734920847276,-583.957492,0.00013698,2]
[346374333,1734920847298,-4497.51,0.00013698,2]
[346374334,1734920847321,-617.63,0.00013698,2]
[346374335,1734920847343,-646.98,0.00013698,2]
[346374336,1734920847365,-583.957492,0.00013698,2]
[346374337,1734920847534,-500.0,0.00013698,2]
[346374338,1734920847556,-181.861564,0.00013698,2]
[346374339,1734920847580,-328.10450235,0.00013698,2]
[346374340,1734920847603,-502.25290807,0.00013698,2]
[346374341,1734920847624,-500.0,0.00013698,2]
[346374342,1734920847646,-1314.43,0.00013698,2]
[346374343,1734920847668,-181.861564,0.00013698,2]
[346374344,1734920847691,-533.96974656,0.00013698,2]
[346374345,1734920847717,-500.0,0.00013698,2]
[346374346,1734920847739,-500.0,0.00013698,2]
[346374347,1734920847760,-500.0,0.00013698,2]
[346374348,1734920847782,-3992.84,0.00013698,2]
[346374349,1734920847804,-569.41,0.00013698,2]
[346374350,1734920847826,-500.0,0.00013698,2]
[346374351,1734920847849,-500.0,0.00013698,2]
[346374352,1734920847871,-625.02,0.00013698,2]
[346374353,1734920847894,-574.7,0.00013698,2]
[346374354,1734920847916,-501.88627619,0.00013698,2]
[346374355,1734920847939,-538.83623943,0.00013698,2]
[346374356,1734920847961,-500.0,0.00013698,2]
[346374357,1734920847983,-500.0,0.00013698,2]
[346374358,1734920848005,-572.25470578,0.00013698,2]
[346374359,1734920848028,-500.0,0.00013698,2]
[346374360,1734920848049,-500.0,0.00013698,2]
[346374361,1734920848070,-500.0,0.00013698,2]
[346374362,1734920848093,-738.26,0.00013698,2]
[346374363,1734920848116,-500.0,0.00013698,2]
[346374364,1734920848140,-642.38,0.00013698,2]
[346374365,1734920848163,-151.0,0.00013698,2]
[346374366,1734920848187,-500.0,0.00013698,2]
[346374367,1734920848209,-1813.06,0.00013698,2]
[346374368,1734920848232,-500.0,0.00013698,2]
[346374369,1734920848254,-500.0,0.00013698,2]
[346374370,1734920848276,-500.0,0.00013698,2]
[346374371,1734920848298,-502.02779808,0.00013698,2]
[346374372,1734920848320,-502.64934432,0.00013698,2]
[346374373,1734920848342,-500.0,0.00013698,2]
[346374374,1734920848365,-151.0,0.00013698,2]
[346374375,1734920848388,-505.69248297,0.00013698,2]
[346374376,1734920848411,-519.71,0.00013698,2]
[346374377,1734920848436,-500.0,0.00013698,2]
[346374378,1734920848459,-500.0,0.00013698,2]
[346374379,1734920848482,-2907.2,0.00013698,2]
[346374380,1734920848507,-502.22188489,0.00013698,2]
[346374381,1734920848529,-2430.27,0.00013698,2]
[346374382,1734920848552,-257.54337536,0.00013698,2]
[346374383,1734920848573,-500.0,0.00013698,2]
[346374384,1734920848596,-500.0,0.00013698,2]
[346374385,1734920848618,-500.0,0.00013698,2]
[346374386,1734920848641,-773.56,0.00013698,2]
[346374387,1734920848663,-1192.34,0.00013698,2]
[346374388,1734920848686,-504.64065992,0.00013698,2]
[346374389,1734920848710,-500.0,0.00013698,2]
[346374390,1734920848732,-347.47688917,0.00013698,2]
[346374391,1734920848754,-500.0,0.00013698,2]
[346374392,1734920848776,-500.0,0.00013698,2]
[346374393,1734920848799,-500.0,0.00013698,2]
[346374394,1734920848821,-1594.88,0.00013698,2]
[346374395,1734920848844,-500.0,0.00013698,2]
[346374396,1734920848867,-520.69785262,0.00013698,2]
[346374397,1734920848890,-2532.56,0.00013698,2]
[346374398,1734920848912,-918.24,0.00013698,2]
[346374399,1734920848937,-34985.63,0.00013698,2]
[346374400,1734920848961,-500.0,0.00013698,2]
[346374401,1734920848984,-500.0,0.00013698,2]
[346374402,1734920849006,-500.0,0.00013698,2]
[346374403,1734920849029,-500.0,0.00013698,2]
[346374404,1734920849051,-500.0,0.00013698,2]
[346374405,1734920849073,-500.0,0.00013698,2]
[346374406,1734920849096,-500.0,0.00013698,2]
[346374407,1734920849119,-504.41265722,0.00013698,2]
[346374408,1734920849142,-500.0,0.00013698,2]
[346374409,1734920849163,-500.0,0.00013698,2]
[346374410,1734920849189,-151.0,0.00013698,2]
[346374411,1734920849212,-500.0,0.00013698,2]
[346374412,1734920849235,-500.0,0.00013698,2]
[346374413,1734920849256,-151.0,0.00013698,2]
[346374414,1734920849278,-7169.56,0.00013698,2]
[346374415,1734920849301,-868.84,0.00013698,2]
[346374416,1734920849323,-500.0,0.00013698,2]
[346374417,1734920849347,-500.0,0.00013698,2]
[346374418,1734920849370,-500.0,0.00013698,2]
[346374419,1734920849392,-739.904404,0.00013698,2]
[346374420,1734920849414,-739.904404,0.00013698,2]
[346374421,1734920849437,-864.400321,0.00013699,2]
[346374422,1734920849459,-213.8284111,0.00013749,2]
[346374423,1734920849481,-434.3521719,0.00013749,2]
[346374424,1734920849502,-153.0,0.00013749,2]
[346374425,1734920849526,-151.0,0.00013972,2]
[346374426,1734920849548,-500.0,0.00013972,2]
[346374427,1734920849569,-500.0,0.00013972,2]
[346374428,1734920849591,-500.0,0.00013972,2]
[346374429,1734920849612,-500.0,0.00013972,2]
[346374430,1734920849634,-500.0,0.00013972,2]
[346374431,1734920849656,-500.0,0.00013972,2]
[346374432,1734920849678,-500.0,0.00013972,2]
[346374433,1734920849702,-500.0,0.00013972,2]
[346374434,1734920849724,-500.0,0.00013972,2]
[346374435,1734920849746,-500.0,0.00013972,2]
[346374436,1734920849767,-500.0,0.00013972,2]
[346374437,1734920849788,-865.46,0.00013972,2]
[346374438,1734920849810,-500.0,0.00013972,2]
[346374439,1734920849832,-500.0,0.00013972,2]
[346374440,1734920849853,-500.0,0.00013972,2]
[346374441,1734920849875,-500.0,0.00013972,2]
[346374442,1734920849896,-500.0,0.00013972,2]
[346374443,1734920849918,-500.0,0.00013972,2]
[346374444,1734920849941,-151.0,0.00013972,2]
[346374445,1734920849962,-151.0,0.00013972,2]
[346374446,1734920849983,-500.0,0.00013972,2]
[346374447,1734920850005,-500.0,0.00013972,2]
[346374448,1734920850027,-500.0,0.00013972,2]
[346374449,1734920850049,-410.50550485,0.00013972,2]
[346374450,1734920850070,-500.0,0.00013972,2]
[346374451,1734920850091,-500.0,0.00013972,2]
[346374452,1734920850112,-500.0,0.00013972,2]
[346374453,1734920850133,-553.89213291,0.00013972,2]
[346374454,1734920850155,-500.0,0.00013972,2]
[346374455,1734920850176,-500.0,0.00013972,2]
[346374456,1734920850198,-500.0,0.00013972,2]
[346374457,1734920850220,-637.67,0.00013972,2]
[346374458,1734920850241,-290.779242,0.00013972,2]
[346374459,1734920850262,-290.779242,0.00013972,2]
[346374460,1734920850282,-151.0,0.00013972,2]
[346374461,1734920850303,-151.0,0.00013972,2]
[346374462,1734920850324,-290.779242,0.00013972,2]
[346374463,1734920850346,-290.779242,0.00013972,2]
[346374464,1734920850369,-500.0,0.00013972,2]
[346374465,1734920850390,-500.0,0.00013972,2]
[346374466,1734920850411,-225.93713334,0.00013972,2]
[346374467,1734920850435,-500.0,0.00013972,2]
[346374468,1734920850458,-500.0,0.00013972,2]
[346374469,1734920850479,-684.2,0.00013972,7]
[346374470,1734920850502,-718.1,0.00013972,2]
[346374471,1734920850527,-500.0,0.00013972,2]
[346374472,1734920850548,-501.32053205,0.00013972,2]
[346374473,1734920850569,-500.97877869,0.00013972,2]
[346374474,1734920850590,-812.05,0.00013972,2]
[346374475,1734920850611,-18643.08809722,0.00013972,2]
[346374476,1734920850632,-500.0,0.00013972,2]
[346374477,1734920850653,-500.0,0.00013972,2]
[346374478,1734920850677,-500.0,0.00013972,2]
[346374479,1734920850701,-500.0,0.00013972,2]
[346374480,1734920850725,-500.0,0.00013972,2]
[346374481,1734920850748,-500.0,0.00013972,2]
[346374482,1734920850770,-500.0,0.00013972,2]
[346374483,1734920850792,-500.0,0.00013972,2]
[346374484,1734920850814,-413.94939823,0.00013972,2]
[346374485,1734920850835,-500.0,0.00013972,2]
[346374486,1734920850856,-500.0,0.00013972,2]
[346374487,1734920850878,-500.0,0.00013972,2]
[346374488,1734920851034,-500.0,0.00013972,2]
[346374489,1734920851056,-500.0,0.00013972,2]
[346374490,1734920851078,-157.785314,0.00013972,2]
[346374491,1734920851099,-170.97394909,0.00013972,2]
[346374492,1734920851121,-500.0,0.00013972,2]
[346374493,1734920851143,-500.0,0.00013972,2]
[346374494,1734920851164,-151.0,0.00013972,2]
[346374495,1734920851187,-151.0,0.00013972,2]
[346374496,1734920851209,-266.90850749,0.00013972,2]
[346374497,1734920851231,-500.0,0.00013972,2]
[346374498,1734920851253,-847.73,0.00013972,2]
[346374499,1734920851275,-500.0,0.00013972,2]
[346374500,1734920851296,-500.0,0.00013972,2]
[346374501,1734920851316,-156.219638,0.00013972,2]
[346374502,1734920851338,-500.0,0.00013972,2]
[346374503,1734920851359,-500.0,0.00013972,2]
[346374504,1734920851382,-500.0,0.00013972,2]
[346374505,1734920851404,-151.0,0.00013972,2]
[346374506,1734920851425,-151.0,0.00013972,2]
[346374507,1734920851447,-151.0,0.00013972,2]
[346374508,1734920851468,-870.52,0.00013972,2]
[346374509,1734920851489,-151.0,0.00013972,2]
[346374510,1734920851514,-251.054414,0.00013972,2]
[346374511,1734920851539,-1200.5,0.00013972,2]
[346374512,1734920851562,-504.72477045,0.00013972,2]
[346374513,1734920851585,-500.0,0.00013972,2]
[346374514,1734920851607,-500.0,0.00013972,2]
[346374515,1734920851628,-500.0,0.00013972,2]
[346374516,1734920851651,-500.0,0.00013972,2]
[346374517,1734920851673,-911.17,0.00013972,2]
[346374518,1734920851697,-500.0,0.00013972,2]
[346374519,1734920851720,-500.0,0.00013972,2]
[346374520,1734920851744,-500.0,0.00013972,2]
[346374521,1734920851767,-1794.64,0.00013972,2]
[346374522,1734920851790,-777.170347,0.00013972,2]
[346374523,1734920851813,-777.170347,0.00013972,2]
[346374524,1734920851836,-500.0,0.00013972,2]
[346374525,1734920851858,-500.0,0.00013972,2]
[346374526,1734920851880,-777.170347,0.00013972,2]
[346374527,1734920851902,-777.170347,0.00013972,2]
[346374528,1734920851923,-968.29,0.00013972,2]
[346374529,1734920851946,-500.0,0.00013972,2]
[346374530,1734920851968,-500.0,0.00013972,2]
[346374531,1734920851990,-1007.44,0.00013972,2]
[346374532,1734920852013,-500.0,0.00013972,2]
[346374533,1734920852035,-1184.1,0.00013972,2]
[346374534,1734920852056,-594.17,0.00013972,2]
[346374535,1734920852077,-500.0,0.00013972,2]
[346374536,1734920852099,-13158.84,0.00013972,2]
[346374537,1734920852120,-500.0,0.00013972,2]
[346374538,1734920852142,-717.81,0.00013972,2]
[346374539,1734920852164,-500.0,0.00013972,2]
[346374540,1734920852190,-500.0,0.00013972,2]
[346374541,1734920852213,-500.0,0.00013972,2]
[346374542,1734920852235,-151.0,0.00013972,2]
[346374543,1734920852257,-151.0,0.00013972,2]
[346374544,1734920852279,-500.0,0.00013972,2]
[346374545,1734920852300,-628.29139523,0.00013972,2]
[346374546,1734920852322,-501.85447821,0.00013972,2]
[346374547,1734920852344,-559.6,0.00013972,2]
[346374548,1734920852367,-500.0,0.00013972,2]
[346374549,1734920852390,-500.0,0.00013972,2]
[346374550,1734920852412,-500.0,0.00013972,2]
[346374551,1734920852437,-500.0,0.00013972,2]
[346374552,1734920852458,-500.0,0.00013972,2]
[346374553,1734920852479,-500.0,0.00013972,2]
[346374554,1734920852502,-500.0,0.00013972,2]
[346374555,1734920852526,-583.957492,0.00013972,2]
[346374556,1734920852550,-4497.51,0.00013972,2]
[346374557,1734920852571,-583.957492,0.00013972,2]
[346374558,1734920852597,-617.63,0.00013972,2]
[346374559,1734920852619,-646.98,0.00013972,2]
[346374560,1734920852641,-583.957492,0.00013972,2]
[346374561,1734920852666,-583.957492,0.00013972,2]
[346374562,1734920852698,-503.33365769,0.00013972,2]
[346374563,1734920852727,-181.861564,0.00013972,2]
[346374564,1734920852758,-181.861564,0.00013972,2]
[346374565,1734920852787,-500.0,0.00013972,2]
[346374566,1734920852816,-1314.43,0.00013972,2]
[346374567,1734920852845,-181.861564,0.00013972,2]
[346374568,1734920852876,-181.861564,0.00013972,2]
[346374569,1734920852903,-500.0,0.00013972,2]
[346374570,1734920852931,-500.0,0.00013972,2]
[346374571,1734920852965,-500.0,0.00013972,2]
[346374572,1734920852995,-3992.84,0.00013972,2]
[346374573,1734920853022,-569.41,0.00013972,2]
[346374574,1734920853049,-500.0,0.00013972,2]
[346374575,1734920853078,-500.0,0.00013972,2]
[346374576,1734920853108,-625.02,0.00013972,2]
[346374577,1734920853140,-574.7,0.00013972,2]
[346374578,1734920853171,-500.0,0.00013972,2]
[346374579,1734920853205,-500.0,0.00013972,2]
[346374580,1734920853231,-500.0,0.00013972,2]
[346374581,1734920853256,-500.0,0.00013972,2]
[346374582,1734920853286,-503.98119112,0.00013972,2]
[346374583,1734920853316,-738.26,0.00013972,2]
[346374584,1734920853341,-500.0,0.00013972,2]
[346374585,1734920853373,-642.38,0.00013972,2]
[346374586,1734920853402,-1813.06,0.00013972,2]
[346374587,1734920853428,-500.0,0.00013972,2]
[346374588,1734920853457,-500.0,0.00013972,2]
[346374589,1734920853484,-500.0,0.00013972,2]
[346374590,1734920853512,-500.0,0.00013972,2]
[346374591,1734920853540,-151.0,0.00013972,2]
[346374592,1734920853571,-152.722616,0.00013972,2]
[346374593,1734920853599,-519.71,0.00013972,2]
[346374594,1734920853628,-500.0,0.00013972,2]
[346374595,1734920853655,-500.0,0.00013972,2]
[346374596,1734920853687,-2907.2,0.00013972,2]
[346374597,1734920853718,-2430.27,0.00013972,2]
[346374598,1734920853746,-500.0,0.00013972,2]
[346374599,1734920853772,-500.0,0.00013972,2]
[346374600,1734920853802,-553.87147763,0.00013972,2]
[346374601,1734920853830,-773.56,0.00013972,2]
[346374602,1734920853858,-1192.34,0.00013972,2]
[346374603,1734920853886,-500.0,0.00013972,2]
[346374604,1734920853913,-512.86748711,0.00013972,2]
[346374605,1734920853945,-500.0,0.00013972,2]
[346374606,1734920853979,-500.0,0.00013972,2]
[346374607,1734920854007,-1594.88,0.00013972,2]
[346374608,1734920854034,-500.0,0.00013972,2]
[346374609,1734920854061,-2532.56,0.00013972,2]
[346374610,1734920854089,-918.24,0.00013972,2]
[346374611,1734920854115,-22180.53778274,0.00013972,2]
[346374646,1734921033097,-321.30214459,0.00013597,2]